fUST/lending_fUST_20240122
["ID","MTS","AMOUNT","RATE_DAILY","PERIOD"]
[312449345,1705883439894,-153.0,0.00027397,2]
[312449346,1705883439903,-204.82177511,0.00027523,2]
[312449347,1705883439912,-155.1857894,0.00027669,2]
[312449349,1705883439920,-228.44112858,0.00027669,2]
[312449351,1705883439929,-270.73882628,0.00027669,2]
[312449353,1705883439937,-155.13913026,0.00027669,2]
[312449355,1705883439947,-172.09030415,0.00027669,2]
[312449357,1705883439955,-197.06033241,0.00027669,2]
[312449359,1705883439964,-327.1728647,0.00027669,2]
[312449361,1705883439973,-420.4849663,0.00027669,2]
[312449363,1705883439982,-1308.82765777,0.00027669,2]
[312449364,1705883439991,-276.80287129,0.00027669,2]
[312449366,1705883440002,-167.08086605,0.00027669,2]
[312449368,1705883440011,-902.81721213,0.0002767,2]
[312449369,1705883440020,-5000.0,0.00027789,5]
[312449370,1705883440029,-979.32752378,0.00027789,2]
[312449371,1705883440038,-670.71921797,0.00027789,2]
[312449372,1705883440048,-1109.43431573,0.00027789,2]
[312449373,1705883440056,-5000.0,0.00027789,5]
[312449374,1705883440065,-2707.89807202,0.00027789,5]
[312449375,1705883440074,-177.70564354,0.000278,2]
[312449376,1705883440083,-261.52719804,0.00027806,2]
[312449377,1705883440209,-151.0,0.00027806,2]
[312449378,1705883440219,-1607.4130733,0.00027807,2]
[312449379,1705883440228,-2306.1562754,0.00027808,5]
[312449380,1705883440236,-301.609407,0.00027897,2]
[312449381,1705883440245,-301.609407,0.00027897,2]
[312449382,1705883440256,-279.177023,0.00027897,2]
[312449383,1705883440264,-342.15,0.00027897,2]
[312449384,1705883440273,-342.15,0.00027897,2]
[312449385,1705883440282,-575.07600384,0.00027897,2]
[312449386,1705883440290,-930.15154631,0.00027899,3]
[312449387,1705883440299,-301.609407,0.00027899,2]
[312449388,1705883440307,-301.609407,0.00027899,2]
[312449389,1705883440316,-151.0,0.00027899,2]
[312449390,1705883440325,-342.15,0.00027899,2]
[312449391,1705883440333,-342.15,0.00027899,2]
[312449392,1705883440342,-193.160683,0.00027899,2]
[312449393,1705883440351,-193.160683,0.00027899,2]
[312449394,1705883440362,-10000.0,0.00027899,2]
[312449395,1705883440371,-10000.0,0.00027899,2]
[312449396,1705883440380,-10000.0,0.00027899,2]
[312449397,1705883440389,-10000.0,0.00027899,2]
[312449398,1705883440398,-10000.0,0.00027899,2]
[312449399,1705883440407,-10000.0,0.00027899,2]
[312449400,1705883440416,-500.0,0.00027899,4]
[312449401,1705883440425,-500.0,0.00027899,4]
[312449402,1705883440434,-500.0,0.00027899,4]
[312449403,1705883440443,-388.60722128,0.00027899,4]
[312449404,1705883440452,-500.0,0.00027899,4]
[312449406,1705883440462,-463.05002002,0.00027899,4]
[312449408,1705883440470,-500.0,0.00027899,4]
[312449410,1705883440479,-296.31669131,0.00027899,4]
[312449411,1705883440488,-500.0,0.00027899,4]
[312449412,1705883440499,-500.0,0.00027899,4]
[312449413,1705883440508,-553.28211294,0.00027899,4]
[312449414,1705883440518,-500.0,0.00027899,4]
[312449415,1705883440526,-500.0,0.00027899,4]
[312449416,1705883440535,-500.0,0.00027899,4]
[312449418,1705883440545,-351.07343649,0.00027899,4]
[312449420,1705883440554,-243.12303791,0.00027899,4]
[312449421,1705883440563,-500.0,0.00027899,4]
[312449422,1705883440572,-500.0,0.00027899,4]
[312449423,1705883440581,-500.0,0.00027899,4]
[312449424,1705883440589,-233.16433276,0.00027899,4]
[312449425,1705883440599,-498.93785138,0.00027899,4]
[312449426,1705883440608,-392.54653164,0.00027899,4]
[312449427,1705883440617,-324.07917283,0.00027899,4]
[312449428,1705883440626,-388.32052824,0.00027899,4]
[312449429,1705883440635,-155.44288851,0.00027899,4]
[312449430,1705883440644,-500.0,0.00027899,4]
[312449431,1705883440654,-212.76835912,0.00027899,4]
[312449432,1705883440664,-560.78075948,0.00027899,4]
[312449433,1705883440673,-388.32052823,0.00027899,4]
[312449434,1705883440682,-453.71084195,0.00027899,4]
[312449435,1705883440692,-157.00534971,0.00027899,2]
[312449436,1705883440703,-395.43017976,0.00027899,2]
[312449437,1705883440714,-500.0,0.00027899,2]
[312449438,1705883440723,-500.0,0.00027899,2]
[312449439,1705883440734,-500.0,0.00027899,2]
[312449440,1705883440743,-500.0,0.00027899,2]
[312449441,1705883440758,-500.0,0.00027899,2]
[312449442,1705883440768,-500.0,0.00027899,2]
[312449443,1705883440778,-500.0,0.00027899,2]
[312449444,1705883440790,-500.0,0.00027899,2]
[312449445,1705883440800,-500.0,0.00027899,2]
[312449446,1705883440810,-607.1679272,0.00027899,2]
[312449447,1705883440819,-500.0,0.00027899,2]
[312449448,1705883440829,-311.44146972,0.00027899,2]
[312449449,1705883440838,-568.95258297,0.00027899,2]
[312449450,1705883440847,-500.0,0.00027899,2]
[312449451,1705883440855,-304.48007413,0.00027899,2]
[312449452,1705883440865,-500.0,0.00027899,2]
[312449453,1705883440874,-500.0,0.00027899,2]
[312449454,1705883440884,-500.0,0.00027899,2]
[312449455,1705883440894,-500.0,0.00027899,2]
[312449456,1705883440904,-500.0,0.00027899,2]
[312449457,1705883440914,-500.0,0.00027899,2]
[312449458,1705883440924,-500.0,0.00027899,2]
[312449459,1705883440933,-500.0,0.00027899,2]
[312449460,1705883440942,-500.0,0.00027899,2]
[312449461,1705883440952,-500.0,0.00027899,2]
[312449462,1705883440961,-500.0,0.00027899,2]
[312449463,1705883440970,-500.0,0.00027899,2]
[312449464,1705883440980,-500.0,0.00027899,2]
[312449465,1705883440989,-500.0,0.00027899,2]
[312449466,1705883441002,-242.55458446,0.00027899,2]
[312449467,1705883441011,-500.0,0.00027899,2]
[312449468,1705883441019,-500.0,0.00027899,2]
[312449469,1705883441028,-500.0,0.00027899,2]
[312449470,1705883441038,-500.0,0.00027899,2]
[312449471,1705883441047,-500.0,0.00027899,2]
[312449472,1705883441056,-500.0,0.00027899,2]
[312449473,1705883441066,-500.0,0.00027899,2]
[312449474,1705883441075,-500.0,0.00027899,2]
[312449475,1705883441084,-500.0,0.00027899,2]
[312449476,1705883441094,-500.0,0.00027899,2]
[312449477,1705883441103,-500.0,0.00027899,2]
[312449478,1705883441112,-500.0,0.00027899,2]
[312449479,1705883441121,-500.0,0.00027899,2]
[312449480,1705883441130,-500.0,0.00027899,2]
[312449481,1705883441139,-500.0,0.00027899,2]
[312449482,1705883441148,-500.0,0.00027899,2]
[312449483,1705883441159,-500.0,0.00027899,2]
[312449484,1705883441168,-500.0,0.00027899,2]
[312449485,1705883441179,-500.0,0.00027899,2]
[312449486,1705883441188,-500.0,0.00027899,2]
[312449487,1705883441197,-500.0,0.00027899,2]
[312449488,1705883441206,-500.0,0.00027899,2]
[312449489,1705883441215,-500.0,0.00027899,2]
[312449490,1705883441225,-500.0,0.00027899,2]
[312449491,1705883441234,-236.75880326,0.00027899,2]
[312449492,1705883441243,-155.72073485,0.00027899,2]
[312449493,1705883441258,-500.0,0.00027899,2]
[312449494,1705883441268,-500.0,0.00027899,2]
[312449495,1705883441277,-512.45158338,0.00027899,2]
[312449496,1705883441286,-500.0,0.00027899,2]
[312449497,1705883441296,-500.0,0.00027899,2]
[312449498,1705883441307,-500.0,0.00027899,2]
[312449499,1705883441317,-500.0,0.00027899,2]
[312449500,1705883441327,-200916.37675419,0.000279,2]
[312449509,1705883443650,-0.00563314,0.000279,2]
[312449867,1705883446479,-1091.3,0.0002789,3]
[312450048,1705884401281,200.0,0.00022305,7]
[312450049,1705884433132,-154.73694719,0.00019449,2]
[312450050,1705884433153,-154.73694719,0.00019449,3]
[312450051,1705884433174,-154.73694719,0.00019449,2]
[312450052,1705884433194,-595.02587032,0.00019449,2]
[312450053,1705884433215,-876.22858684,0.0001945,2]
[312450054,1705884433235,-156.9264307,0.0001945,2]
[312450055,1705884433255,-644.2750614,0.0001945,2]
[312450056,1705884433275,-246.1618135,0.0001945,2]
[312450057,1705884433295,-2814.61840706,0.0001945,2]
[312450058,1705884433315,-1266.53793061,0.00019451,2]
[312450059,1705884433335,-213.3962609,0.00019452,2]
[312450060,1705884433358,-760.5927205,0.00019452,2]
[312450061,1705884433382,-154.73694719,0.00019453,2]
[312450062,1705884433402,-1579.05681645,0.00019453,2]
[312450063,1705884433424,-1993.11428292,0.00019453,2]
[312450064,1705884433445,-250.0,0.00019454,2]
[312450065,1705884433469,-2660.83,0.00020269,3]
[312450066,1705884433490,-2217.36,0.00020269,3]
[312450067,1705884433511,-13717.4313798,0.00020277,2]
[312450068,1705884433532,-3485.08832391,0.00020278,2]
[312450069,1705884433553,-19697.53585665,0.00020278,2]
[312450070,1705884433574,-616.63420581,0.00020279,2]
[312450071,1705884433596,-11590.95155057,0.00020279,2]
[312450073,1705884548253,-154.73694719,0.00020009,4]
[312450074,1705884548278,-8002.79748155,0.00020009,2]
[312450075,1705884548303,-1242.31465176,0.0002001,2]
[312450076,1705884548326,-21682.11011495,0.0002001,2]
[312450077,1705884548350,-19697.53585665,0.0002001,2]
[312450078,1705884548374,-301.87306953,0.00020011,2]
[312450079,1705884548400,-154.73694719,0.00020011,2]
[312450080,1705884548424,-154.73694719,0.00020011,2]
[312450081,1705884548450,-3745.3390844,0.00020011,2]
[312450082,1705884548472,-8760.12309796,0.00020011,2]
[312450083,1705884548499,-24900.0,0.00020012,2]
[312450084,1705884548526,-596.244397,0.00020288,2]
[312450085,1705884548554,-327.4401691,0.00021,2]
[312450086,1705884548578,-154.75239617,0.0002144,2]
[312450087,1705884548601,-596.24545744,0.00022444,2]
[312450088,1705884548625,-177.70564354,0.00023455,2]
[312450089,1705884548649,-786.27941579,0.00023821,2]
[312450090,1705884548676,-167.197676,0.00023822,2]
[312450091,1705884548700,-70.41889662,0.00024136,5]
[312450123,1705884632554,-154.73694719,0.00020008,2]
[312450125,1705884632564,-154.73694719,0.00024134,4]
[312450127,1705884632573,-689.41556789,0.00024136,5]
[312450129,1705884632583,-280.0,0.00024536,7]
[312450131,1705884632592,-556.45383704,0.00025106,2]
[312450133,1705884632602,-269.67647698,0.000258,2]
[312450135,1705884632611,-564.95583797,0.00026281,2]
[312450137,1705884632620,-145.02635374,0.00026547,2]
[312450139,1705884632632,-1383.69752417,0.00026547,2]
[312450141,1705884632641,-1266.59,0.00026808,3]
[312450145,1705884632651,-2168.87,0.00026808,3]
[312450147,1705884632661,-1807.39,0.00026808,3]
[312450149,1705884632670,-1506.16,0.00026808,3]
[312450151,1705884632679,-4647.14344276,0.00026815,2]
[312450154,1705884632690,-1000.0,0.00026815,2]
[312450156,1705884632701,-2349.98301255,0.00026815,2]
[312450157,1705884632714,-301.63511247,0.00026815,2]
[312450159,1705884632723,-327.1728647,0.00026815,2]
[312450161,1705884632735,-177.61623034,0.00026815,2]
[312450163,1705884632745,-10063.58087961,0.00026815,2]
[312450165,1705884632755,-4950.76190124,0.00026815,2]
[312450167,1705884632764,-3742.8955068,0.00026815,2]
[312450169,1705884632774,-617.61800897,0.00026815,2]
[312450171,1705884632783,-226.58917568,0.00026816,2]
[312450174,1705884632792,-239.16358008,0.00026816,2]
[312450175,1705884632801,-297.58594734,0.00026816,2]
[312450177,1705884632811,-1197.69360057,0.00026816,2]
[312450179,1705884632820,-678.4765603,0.00026816,2]
[312450182,1705884632829,-167.08086605,0.00026817,2]
[312450183,1705884632838,-902.81721213,0.00026817,2]
[312450185,1705884632847,-166.58308548,0.00026817,2]
[312450187,1705884632856,-228.44112858,0.00026817,2]
[312450189,1705884632866,-1308.82765777,0.00026817,2]
[312450191,1705884632874,-276.80287129,0.00026817,2]
[312450193,1705884632883,-1293.1158294,0.00026817,2]
[312450195,1705884632892,-172.09030415,0.00026817,2]
[312450197,1705884632901,-420.4849663,0.00026817,2]
[312450199,1705884632910,-270.73882628,0.00026817,2]
[312450201,1705884632919,-155.1857894,0.00026817,2]
[312450203,1705884632929,-3967.54249474,0.00026817,2]
[312450205,1705884632938,-154.86062544,0.00026817,2]
[312450207,1705884632946,-1602.24051039,0.00026817,2]
[312450209,1705884632956,-850.12372754,0.00026817,2]
[312450211,1705884632966,-175.13584081,0.00026817,2]
[312450213,1705884632974,-4004.31338838,0.00026817,2]
[312450215,1705884632985,-824.15691166,0.00026817,2]
[312450217,1705884632994,-874.3668571,0.00026817,2]
[312450219,1705884633003,-156.60906457,0.00026817,2]
[312450221,1705884633012,-155.03073102,0.00026817,2]
[312450223,1705884633021,-643.83463036,0.00026817,2]
[312450225,1705884633031,-255.05214098,0.00026817,2]
[312450227,1705884633041,-746.62454496,0.00026817,2]
[312450229,1705884633050,-197.22070104,0.00026817,2]
[312450244,1705884633186,-1090.23474738,0.00026817,2]
[312450247,1705884633204,-2601.8604253,0.00026817,2]
[312450249,1705884633216,-647.18021729,0.00026817,2]
[312450251,1705884633225,-784.03684956,0.00026817,2]
[312450253,1705884633236,-2031.47162258,0.00026817,2]
[312450255,1705884633245,-156.09248112,0.00026817,2]
[312450257,1705884633254,-209.99420773,0.00026817,2]
[312450259,1705884633263,-245.98389406,0.00026817,2]
[312450261,1705884633272,-575.07600384,0.00026818,2]
[312450263,1705884633281,-15212.39198366,0.00026818,2]
[312450265,1705884633290,-160.64828034,0.00026819,2]
[312450267,1705884633300,-333.58168605,0.00026819,2]
[312450269,1705884633309,-155.16305792,0.00026819,2]
[312450271,1705884633318,-154.9690062,0.00026819,2]
[312450273,1705884633327,-155.09288231,0.00026819,2]
[312450275,1705884633336,-291.3938216,0.00026819,2]
[312450277,1705884633347,-2072.61065155,0.00026819,2]
[312450279,1705884633356,-272.42186695,0.00026819,2]
[312450281,1705884633365,-178.65716453,0.00026819,2]
[312450283,1705884633374,-2037.73028477,0.00026819,2]
[312450285,1705884633383,-158.18922111,0.00026819,2]
[312450287,1705884633392,-205.21046346,0.00026819,2]
[312450289,1705884633401,-154.9690062,0.00026819,2]
[312450291,1705884633410,-441.16105616,0.00026819,2]
[312450293,1705884633420,-13202.97985875,0.00026819,2]
[312450405,1705884638675,-7576.05804045,0.00026819,2]
[312450406,1705884638684,-32558.99189631,0.00026821,2]
[312450407,1705884638693,-12946.85562155,0.00026821,2]
[312450408,1705884638703,-391.0,0.00026989,15]
[312450409,1705884638712,-2807.0,0.00027,2]
[312450410,1705884638721,-154.73694719,0.00027,2]
[312450411,1705884638730,-155.0,0.00027397,2]
[312450412,1705884638740,-903.81,0.00027397,2]
[312450413,1705884638749,-684.11969355,0.00027397,2]
[312450414,1705884638758,-903.81,0.00027534,2]
[312450415,1705884638767,-903.81,0.00027671,2]
[312450416,1705884638777,-1255.13,0.00027779,3]
[312450417,1705884638785,-276.00600985,0.00027788,2]
[312450418,1705884638794,-11062.44554216,0.00027789,5]
[312450419,1705884638803,-12469.65156479,0.00027789,5]
[312450420,1705884638812,-623.48257824,0.00027789,2]
[312450421,1705884638821,-200.0,0.000278,4]
[312450422,1705884638830,-903.81,0.00027808,2]
[312450423,1705884638839,-1046.11952043,0.00027868,2]
[312450424,1705884638847,-261.52719804,0.0002789,2]
[312450425,1705884638856,-155.46887984,0.0002789,2]
[312450426,1705884638865,-489.9472266,0.0002789,2]
[312450427,1705884638874,-715.04668397,0.0002789,2]
[312450428,1705884638884,-190.72506666,0.0002789,2]
[312450429,1705884638892,-8271.12313202,0.0002789,2]
[312450430,1705884638901,-1607.4130733,0.0002789,2]
[312450431,1705884638910,-1773.85540432,0.0002789,2]
[312450432,1705884638919,-1027.75667386,0.0002789,2]
[312450433,1705884638928,-294.70821043,0.00027896,2]
[312450434,1705884638937,-2102.56602861,0.00027896,2]
[312450435,1705884638946,-170.79924496,0.00027896,2]
[312450436,1705884638955,-154.93802479,0.00027896,2]
[312450437,1705884638965,-1883.88086587,0.00027896,2]
[312450438,1705884638974,-242.99577859,0.00027896,2]
[312450439,1705884638984,-262.29973777,0.00027896,2]
[312450440,1705884638994,-262.14973458,0.00027896,2]
[312450441,1705884639002,-154.87609912,0.00027896,2]
[312450442,1705884639011,-4721.94908896,0.00027897,2]
[312450443,1705884639021,-177.90237609,0.00027897,2]
[312450444,1705884639031,-3093.5839729,0.00027897,2]
[312450445,1705884639040,-154.75239617,0.00027897,2]
[312450446,1705884639049,-323.06508436,0.00027897,2]
[312450447,1705884639058,-154.86062544,0.00027898,2]
[312450448,1705884639067,-1740.08077845,0.00027898,2]
[312450449,1705884639076,-155.57473805,0.00027898,2]
[312450450,1705884639086,-18895.08975883,0.00027898,2]
[312450451,1705884639095,-16062.51652276,0.00027898,2]
[312450452,1705884639103,-500.00000001,0.00027899,2]
[312450453,1705884639112,-500.0,0.00027899,2]
[312450454,1705884639121,-500.0,0.00027899,2]
[312450455,1705884639130,-500.0,0.00027899,2]
[312450456,1705884639140,-500.0,0.00027899,2]
[312450457,1705884639149,-500.0,0.00027899,2]
[312450458,1705884639158,-500.0,0.00027899,2]
[312450459,1705884639167,-500.0,0.00027899,2]
[312450460,1705884639177,-191.72535509,0.00027899,2]
[312450461,1705884639186,-500.0,0.00027899,2]
[312450462,1705884639194,-500.0,0.00027899,2]
[312450463,1705884639203,-500.0,0.00027899,2]
[312450464,1705884639213,-542.86717088,0.00027899,2]
[312450465,1705884639222,-500.0,0.00027899,2]
[312450466,1705884639231,-221.79202965,0.00027899,2]
[312450467,1705884639241,-627.58103319,0.00027899,2]
[312450468,1705884639250,-483.58110228,0.00027899,2]
[312450469,1705884639259,-500.0,0.00027899,2]
[312450470,1705884639268,-500.0,0.00027899,2]
[312450471,1705884639278,-500.0,0.00027899,2]
[312450472,1705884639287,-500.0,0.00027899,2]
[312450473,1705884639296,-500.0,0.00027899,2]
[312450474,1705884639305,-500.0,0.00027899,2]
[312450475,1705884639314,-500.0,0.00027899,2]
[312450476,1705884639324,-304.98063335,0.00027899,2]
[312450477,1705884639332,-500.0,0.00027899,2]
[312450478,1705884639341,-500.0,0.00027899,2]
[312450479,1705884639350,-500.0,0.00027899,2]
[312450480,1705884639359,-500.0,0.00027899,2]
[312450481,1705884639367,-500.00000001,0.00027899,2]
[312450482,1705884639376,-500.0,0.00027899,2]
[312450483,1705884639385,-500.0,0.00027899,2]
[312450484,1705884639394,-500.00000001,0.00027899,2]
[312450485,1705884639403,-395.43017976,0.00027899,2]
[312450486,1705884639411,-157.00534971,0.00027899,2]
[312450487,1705884639420,-465.07577315,0.000279,3]
[312450488,1705884639429,-362201.33075984,0.000279,2]
[312450489,1705884639438,-118528.82594108,0.000279,2]
[312450490,1705884639447,-193.160683,0.000279,2]
[312450491,1705884639455,-193.160683,0.000279,2]
[312450492,1705884639464,-193.160683,0.000279,2]
[312450493,1705884639474,-193.160683,0.000279,2]
[312450494,1705884639482,-193.160683,0.000279,2]
[312450495,1705884639492,-193.160683,0.000279,2]
[312450496,1705884639501,-279.177023,0.000279,2]
[312450497,1705884639510,-342.15,0.000279,2]
[312450498,1705884639519,-342.15,0.000279,2]
[312450499,1705884639528,-342.15,0.000279,2]
[312450500,1705884639536,-342.15,0.000279,2]
[312450501,1705884639545,-301.609407,0.000279,2]
[312450502,1705884639557,-301.609407,0.000279,2]
[312450503,1705884639565,-301.609407,0.000279,2]
[312450504,1705884639574,-301.609407,0.000279,2]
[312450505,1705884639583,-151.0,0.000279,2]
[312450506,1705884639591,-151.0,0.000279,2]
[312450507,1705884639602,-151.0,0.000279,2]
[312450508,1705884639611,-10000.0,0.000279,2]
[312450509,1705884639621,-10000.0,0.000279,2]
[312450510,1705884639630,-10000.0,0.000279,2]
[312450511,1705884639639,-10000.0,0.000279,2]
[312450512,1705884639648,-10000.0,0.000279,2]
[312450513,1705884639658,-10000.0,0.000279,2]
[312450514,1705884639667,-10000.0,0.000279,2]
[312450515,1705884639676,-10000.0,0.000279,2]
[312450516,1705884639685,-10000.0,0.000279,2]
[312450517,1705884639694,-10000.0,0.000279,2]
[312450518,1705884639702,-10000.0,0.000279,2]
[312450519,1705884639711,-10000.0,0.000279,2]
[312450520,1705884639721,-10000.0,0.000279,2]
[312450521,1705884639730,-10000.0,0.000279,2]
[312450522,1705884639739,-10000.0,0.000279,2]
[312450523,1705884639748,-10000.0,0.000279,2]
[312450524,1705884639757,-10000.0,0.000279,2]
[312450525,1705884639767,-10000.0,0.000279,2]
[312450526,1705884639775,-392.169366,0.000279,2]
[312450527,1705884639784,-392.169366,0.000279,2]
[312450528,1705884639793,-150.0,0.00027907,2]
[312450529,1705884639802,-150.0,0.00027907,2]
[312450530,1705884639811,-301.609407,0.00027945,2]
[312450531,1705884639820,-301.609407,0.00027945,2]
[312450532,1705884639829,-903.81,0.00027945,2]
[312450533,1705884639837,-290.23210975,0.00028,2]
[312450534,1705884639846,-6542.05161315,0.00028,2]
[312450535,1705884639855,-342.15,0.00028,2]
[312450536,1705884639864,-342.15,0.00028,2]
[312450537,1705884639873,-392.169366,0.00028,2]
[312450538,1705884639882,-392.169366,0.00028,2]
[312450539,1705884639891,-620.00127391,0.00028066,2]
[312450540,1705884639900,-903.81,0.00028082,2]
[312450541,1705884639909,-903.81,0.00028219,2]
[312450542,1705884639917,-151.0,0.00028318,2]
[312450543,1705884639926,-903.81,0.00028356,2]
[312450544,1705884639935,-150.0,0.000284,2]
[312450545,1705884639944,-903.81,0.00028493,2]
[312450546,1705884639953,-1000.0,0.00028528,2]
[312450547,1705884639962,-650.889086,0.00028551,2]
[312450548,1705884639971,-230.14331,0.00028551,2]
[312450549,1705884639980,-1572.635532,0.00028551,2]
[312450550,1705884639989,-1304.145425,0.00028551,2]
[312450551,1705884639998,-165.526792,0.00028551,2]
[312450552,1705884640007,-155.204557,0.00028551,2]
[312450553,1705884640016,-191.786093,0.00028551,2]
[312450554,1705884640025,-254.828753,0.00028551,2]
[312450555,1705884640034,-562.075125,0.00028551,2]
[312450556,1705884640043,-159.267972,0.00028551,2]
[312450557,1705884640052,-179.31992,0.00028551,2]
[312450558,1705884640062,-191.786093,0.00028551,2]
[312450559,1705884640071,-1000.0,0.0002856,2]
[312450560,1705884640080,-1000.0,0.00028563,2]
[312450561,1705884640089,-1000.0,0.00028576,2]
[312450562,1705884640098,-1000.0,0.00028603,2]
[312450563,1705884640107,-1000.0,0.00028609,2]
[312450564,1705884640117,-589.50643016,0.0002862,2]
[312450565,1705884640127,-903.81,0.0002863,2]
[312450566,1705884640136,-1000.0,0.00028635,2]
[312450567,1705884640145,-1000.0,0.0002865,2]
[312450568,1705884640154,-1000.0,0.00028671,2]
[312450569,1705884640163,-1000.0,0.0002868,2]
[312450570,1705884640173,-300.0,0.000287,14]
[312450571,1705884640182,-1000.0,0.00028708,2]
[312450572,1705884640191,-151.0,0.00028737,2]
[312450573,1705884640200,-1000.0,0.00028741,2]
[312450574,1705884640209,-983.85832461,0.00028755,2]
[312450575,1705884640424,-16.14167539,0.00028755,2]
[312450576,1705884640433,-1000.0,0.00028758,2]
[312450577,1705884640442,-65.43223798,0.00028767,2]
[312450641,1705884856840,268.97247415,0.0001,2]
[312450642,1705884862286,2710.03273659,0.0001,2]
[312450657,1705885747144,-154.73694719,0.00022895,4]
[312450658,1705885747165,-250.0,0.00022896,2]
[312450659,1705885747186,-6719.9163184,0.00023043,2]
[312450660,1705885747208,-160.95081821,0.00023243,2]
[312450661,1705885747228,-166.666666,0.00023343,2]
[312450662,1705885747247,-154.87609912,0.00023397,2]
[312450663,1705885747268,-24900.0,0.00023398,2]
[312450664,1705885747288,-298.122198,0.00023532,2]
[312450665,1705885747310,-300.92071559,0.00023826,2]
[312450666,1705885747330,-173.299992,0.00023926,2]
[312450667,1705885747352,-166.666666,0.00023979,2]
[312450668,1705885747372,-1113.91161195,0.00024035,2]
[312450669,1705885747396,-185.37059612,0.00024036,2]
[312450670,1705885747417,-2083.05150517,0.00024136,2]
[312450671,1705885747438,-166.666666,0.00024615,2]
[312450672,1705885747462,-149.74323912,0.00024662,2]
[312450719,1705885831815,-11.20757909,0.00024662,2]
[312450721,1705885831824,-154.73694719,0.00024748,4]
[312450723,1705885831834,-166.666666,0.0002527,2]
[312450724,1705885831843,-369.6600068,0.00025406,2]
[312450726,1705885831854,-1065.93642393,0.00025406,2]
[312450771,1705885837935,-145.82728014,0.00025406,2]
[312450772,1705885837945,-24900.0,0.00025591,2]
[312450774,1705885837954,-298.122198,0.00025719,2]
[312450776,1705885837963,-200.0,0.00025737,7]
[312450778,1705885837972,-644.24427722,0.000258,2]
[312450779,1705885837981,-168.66437982,0.00025917,2]
[312450780,1705885837991,-160.95081821,0.00026081,2]
[312450782,1705885838003,-620.05001987,0.0002673,2]
[312450784,1705885838012,-166.666666,0.00026993,2]
[312450785,1705885838022,-154.73694719,0.00027,2]
[312450787,1705885838032,-170.450179,0.0002711,2]
[312450788,1705885838042,-155.0,0.00027397,2]
[312450790,1705885838052,-400.0,0.00027397,2]
[312450792,1705885838062,-790.83,0.00027489,2]
[312450793,1705885838071,-42295.53432182,0.000275,2]
[312450794,1705885838081,-160.95081821,0.000275,2]
[312450795,1705885838092,-1053.90871408,0.000276,19]
[312450796,1705885838103,-790.83,0.00027626,2]
[312450797,1705885838114,-790.83,0.00027763,2]
[312450798,1705885838127,-5000.0,0.00027787,5]
[312450799,1705885838138,-634.90859387,0.00027787,2]
[312450800,1705885838148,-4004.14281223,0.00027787,5]
[312450801,1705885838158,-200.0,0.000278,4]
[312450802,1705885838169,-465.07577315,0.000279,3]
[312450803,1705885838180,-30413.13457681,0.000279,2]
[312450804,1705885838193,-170503.24217738,0.000279,2]
[312450805,1705885838203,-790.83,0.000279,2]
[312450806,1705885838212,-290.23210975,0.00028,2]
[312450807,1705885838222,-790.83,0.00028037,2]
[312450808,1705885838231,-620.00250099,0.00028066,2]
[312450809,1705885838241,-790.83,0.00028174,2]
[312450810,1705885838252,-280.0,0.0002831,15]
[312450811,1705885838261,-790.83,0.00028311,2]
[312450812,1705885838271,-790.83,0.00028448,2]
[312450813,1705885838280,-1000.0,0.00028538,2]
[312450814,1705885838291,-790.83,0.00028585,2]
[312450815,1705885838300,-601.32408523,0.00028606,2]
[312450816,1705885838310,-1000.0,0.00028614,2]
[312450817,1705885838319,-1000.0,0.00028618,2]
[312450818,1705885838329,-1000.0,0.0002864,2]